bitfinex-derivatives/quotes_BNBF0:USTF0_20230901
["timestamp","ask_amount","ask_price","bid_price","bid_amount"]
[1693536037069,0.0755494,216.9,214.72,1.68946806]
[1693536038670,0.0755494,216.89,214.72,1.68946806]
[1693536039872,0.0755494,216.88,214.72,1.68946806]
[1693536040871,0.0755494,216.86,214.72,1.68946806]
[1693536045472,0.0755494,216.87,214.72,1.68946806]
[1693536047780,0.0755494,216.88,214.72,1.68946806]
[1693536049680,0.0755494,216.89,214.72,1.68946806]
[1693536050785,0.0755494,216.9,214.72,1.68946806]
[1693536052680,0.0755494,216.91,214.72,1.68946806]
[1693536053781,0.0755494,216.92,214.72,1.68946806]
[1693536054777,0.0755494,216.93,214.72,1.68946806]
[1693536055882,0.0755494,216.94,214.72,1.68946806]
[1693536056784,0.0755494,216.95,214.72,1.68946806]
[1693536056985,0.0755494,216.94,214.72,1.68946806]
[1693536058388,0.0755494,216.95,214.72,1.68946806]
[1693536058789,0.0755494,216.94,214.72,1.68946806]
[1693536061388,0.0755494,216.95,214.72,1.68946806]
[1693536061585,0.0755494,216.94,214.72,1.68946806]
[1693536086008,0.0755494,216.93,214.72,1.68946806]
[1693536086405,0.0755494,216.93,214.73,0.16925258]
[1693536086610,0.0755494,216.93,214.74,0.16925258]
[1693536086811,0.0755494,216.93,214.75,0.16925258]
[1693536087110,0.0755494,216.94,214.76,0.16925258]
[1693536087310,0.0755494,216.93,214.77,0.16925258]
[1693536087609,0.0755494,216.94,214.78,0.16925258]
[1693536087810,0.0755494,216.94,214.79,0.16925258]
[1693536088111,0.0755494,216.93,214.8,0.16925258]
[1693536088410,0.0755494,216.93,214.81,0.16925258]
[1693536088603,0.0755494,216.93,214.82,0.16925258]
[1693536088808,0.0755494,216.94,214.83,0.16925258]
[1693536089008,0.0755494,216.94,214.71,1.68946806]
[1693536090106,0.0755494,216.93,214.71,1.68946806]
[1693536090512,0.0755494,216.94,214.71,1.68946806]
[1693536093009,0.0755494,216.93,214.71,1.68946806]
[1693536093315,0.0755494,216.94,214.71,1.68946806]
[1693536093510,0.0755494,216.93,214.71,1.68946806]
[1693536093911,0.0755494,216.94,214.71,1.68946806]
[1693536095416,0.0755494,216.93,214.71,1.68946806]
[1693536095616,0.0755494,216.94,214.71,1.68946806]
[1693536097916,0.0755494,216.94,214.72,1.85872064]
[1693536098117,0.0755494,216.94,214.73,0.16925258]
[1693536098318,0.0755494,216.95,214.74,0.16925258]
[1693536098518,0.0755494,216.95,214.72,1.68946806]
[1693536101823,0.0755494,216.95,214.73,1.68946806]
[1693536109628,0.0755494,216.96,214.74,0.16925258]
[1693536109827,0.0755494,216.96,214.75,0.16925258]
[1693536110030,0.0755494,216.96,214.72,1.68946806]
[1693536113431,0.0755494,216.96,214.73,1.68946806]
[1693536115033,0.0755494,216.95,214.73,1.68946806]
[1693536117333,0.0755494,216.96,214.74,0.16925258]
[1693536117633,0.0755494,216.96,214.75,0.16925258]
[1693536117832,0.0755494,216.96,214.76,0.16925258]
[1693536118034,0.0755494,216.96,214.77,0.16925258]
[1693536118232,0.0755494,216.96,214.78,0.16925258]
[1693536118433,0.0755494,216.95,214.79,0.16925258]
[1693536118733,0.0755494,216.96,214.8,0.16925258]
[1693536118933,0.0755494,216.96,214.81,0.16925258]
[1693536119134,0.0755494,216.96,214.72,1.68946806]
[1693536124531,0.0755494,216.95,214.72,1.68946806]
[1693536125931,0.0755494,216.96,214.72,1.68946806]
[1693536126330,0.0755494,216.95,214.72,1.68946806]
[1693536132535,0.0755494,216.96,214.72,1.68946806]
[1693536132839,0.0755494,216.95,214.72,1.68946806]
[1693536133240,0.0755494,216.95,214.73,1.68946806]
[1693536149359,0.0755494,216.94,214.74,0.16925258]
[1693536149560,0.0755494,216.94,214.75,0.16925258]
[1693536149853,0.0755494,216.94,214.76,0.16925258]
[1693536150157,0.0755494,216.94,214.77,0.16925258]
[1693536150456,0.0755494,216.94,214.78,0.16925258]
[1693536150658,0.0755494,216.94,214.79,0.16925258]
[1693536150858,0.0755494,216.94,214.72,1.68946806]
[1693536151259,0.0755494,216.95,214.72,1.68946806]
[1693536151452,0.0755494,216.94,214.72,1.68946806]
[1693536151653,0.0755494,216.95,214.72,1.68946806]
[1693536153160,0.0755494,216.94,214.72,1.68946806]
[1693536154965,0.0755494,216.95,214.72,1.68946806]
[1693536155563,0.0755494,216.94,214.72,1.68946806]
[1693536155761,0.0755494,216.95,214.72,1.68946806]
[1693536156163,0.0755494,216.94,214.72,1.68946806]
[1693536156567,0.0755494,216.95,214.72,1.68946806]
[1693536158369,0.0755494,216.94,214.72,1.68946806]
[1693536158567,0.0755494,216.95,214.72,1.68946806]
[1693536174685,0.0755494,216.94,214.72,1.68946806]
[1693536176181,0.0755494,216.95,214.72,1.68946806]
[1693536176686,0.0755494,216.94,214.72,1.68946806]
[1693536177386,0.0755494,216.95,214.72,1.68946806]
[1693536177586,0.0755494,216.94,214.72,1.68946806]
[1693536196594,0.0755494,216.94,214.71,1.68946806]
[1693536199299,2.51831341,217.07,214.71,1.68946806]
[1693536199495,0.84671081,229.99,214.71,1.68946806]
[1693536199799,0.07557398,216.94,214.71,1.68946806]
[1693536200495,0.07557398,216.94,214.72,1.85872064]
[1693536200695,0.07557398,216.94,214.73,0.16925258]
[1693536200898,0.07557398,216.94,214.74,0.16925258]
[1693536201094,0.07557398,216.94,214.75,0.16925258]
[1693536201298,0.07557398,216.94,214.76,0.16925258]
[1693536201600,0.07557398,216.94,214.77,0.16925258]
[1693536201795,0.07557398,216.94,214.78,0.16925258]
[1693536201993,0.07557398,216.94,214.79,0.16925258]
[1693536202194,0.07557398,216.94,214.8,0.16925258]
[1693536202400,0.07557398,216.94,214.81,0.16925258]
[1693536202600,0.07557398,216.94,214.82,0.16925258]
[1693536202902,0.07557398,216.94,214.83,0.16925258]
[1693536203201,0.07557398,216.94,214.84,0.16925258]
[1693536203402,0.07557398,216.94,214.85,0.16925258]
[1693536203702,0.07557398,216.94,214.86,0.16925258]
[1693536204001,0.07557398,216.94,214.87,0.16925258]
[1693536204201,0.07557398,216.94,214.88,0.16925258]
[1693536204396,0.07557398,216.94,214.89,0.16925258]
[1693536204599,0.07557398,216.94,214.9,0.16925258]
[1693536204802,0.07557398,216.94,214.72,1.68946806]
[1693536212307,0.07557398,216.94,212.9,20.1308777]
[1693536212308,0.07557398,216.94,214.71,1.68946806]
[1693536212712,0.07557398,216.93,214.71,1.68946806]
[1693536213611,0.07557398,216.94,214.71,1.68946806]
[1693536224121,0.07557398,216.93,214.71,1.68946806]
[1693536227828,0.07557398,216.94,214.71,1.68946806]
[1693536228030,0.07557398,216.94,214.72,1.68946806]
[1693536228829,0.07557398,216.92,214.72,1.68946806]
[1693536230330,0.07557398,216.93,214.72,1.68946806]
[1693536231030,0.07557398,216.94,214.72,1.68946806]
[1693536232233,0.07557398,216.95,214.72,1.68946806]
[1693536232427,0.07557398,216.96,214.77,1.68946806]
[1693536232624,0.07557398,217.01,214.77,1.68946806]
[1693536233028,0.15114796,217.03,214.77,1.68946806]
[1693536233029,0.07557398,217.03,214.77,1.68946806]
[1693536234034,0.07557398,217.04,214.77,1.68946806]
[1693536234735,0.07557398,217.06,214.77,1.68946806]
[1693536235135,0.07557398,217.07,214.77,1.68946806]
[1693536235431,0.07557398,217.08,214.77,1.68946806]
[1693536235937,0.07557398,217.09,214.77,1.68946806]
[1693536236137,0.07557398,217.08,214.77,1.68946806]
[1693536236837,0.07557398,217.08,214.79,1.68946806]
[1693536237036,0.07557398,217.09,214.79,1.68946806]
[1693536238638,0.07557398,217.08,214.79,1.68946806]
[1693536238839,0.07557398,217.09,214.79,1.68946806]
[1693536239039,0.07557398,217.08,214.79,1.68946806]
[1693536239639,0.07557398,217.07,214.79,1.68946806]
[1693536239939,0.07557398,217.08,214.79,1.68946806]
[1693536240135,0.07557398,217.07,214.79,1.68946806]
[1693536241436,0.07557398,217.07,214.8,0.16925258]
[1693536241637,0.07557398,217.07,214.81,0.16925258]
[1693536241835,0.07557398,217.07,214.82,0.16925258]
[1693536242040,0.07557398,217.07,214.83,0.16925258]
[1693536242241,0.07557398,217.07,214.78,1.68946806]
[1693536243236,0.07557398,217.06,214.78,1.68946806]
[1693536245944,0.07557398,217.05,214.78,1.68946806]
[1693536247946,0.07557398,217.04,214.78,1.68946806]
[1693536250140,0.07557398,217.03,214.78,1.68946806]
[1693536252344,0.07557398,217.02,214.78,1.68946806]
[1693536255245,0.07557398,217.01,214.78,1.68946806]
[1693536257851,0.07557398,217.0,214.78,1.68946806]
[1693536259954,0.07557398,216.99,214.78,1.68946806]
[1693536261845,0.07557398,216.98,214.78,1.68946806]
[1693536262249,0.07557398,216.99,214.78,1.68946806]
[1693536262646,0.07557398,216.98,214.78,1.68946806]
[1693536262852,0.07557398,216.99,214.78,1.68946806]
[1693536263047,0.07557398,216.98,214.78,1.68946806]
[1693536263853,0.07557398,216.97,214.78,1.68946806]
[1693536264849,0.07557398,216.95,214.78,1.68946806]
[1693536266052,2.51913282,217.09,214.78,1.68946806]
[1693536266053,0.07557398,216.94,214.78,1.68946806]
[1693536267052,0.07557398,216.91,214.78,1.68946806]
[1693536267353,0.15114796,216.93,214.78,1.68946806]
[1693536267354,0.07557398,216.92,214.78,1.68946806]
[1693536267553,0.07557398,216.92,214.79,1.85872064]
[1693536267753,0.07557398,216.92,214.8,0.16925258]
[1693536267953,0.07557398,216.92,214.81,0.16925258]
[1693536268252,0.07557398,216.92,214.82,0.16925258]
[1693536268455,0.07557398,216.93,214.83,0.16925258]
[1693536268750,0.07557398,216.92,214.84,0.16925258]
[1693536268954,0.07557398,216.93,214.79,1.68946806]
[1693536269154,0.07557398,216.92,214.79,1.68946806]
[1693536269454,0.07557398,216.93,214.79,1.68946806]
[1693536270551,0.07557398,216.95,214.79,1.68946806]
[1693536271658,0.07557398,216.94,214.79,1.68946806]
[1693536271856,0.07557398,216.94,214.81,1.68946806]
[1693536274159,0.07557398,216.95,214.81,1.68946806]
[1693536274559,0.07557398,216.94,214.81,1.68946806]
[1693536276455,0.07557398,216.94,214.79,1.68946806]
[1693536277056,0.07557398,216.95,214.79,1.68946806]
[1693536278960,0.07557398,216.96,214.79,1.68946806]
[1693536280959,0.07557398,216.97,214.79,1.68946806]
[1693536281359,0.07557398,216.97,214.8,1.85872064]
[1693536281561,0.07557398,216.97,214.81,0.16925258]
[1693536281762,0.07557398,216.97,214.82,0.16925258]
[1693536281964,0.07557398,216.97,214.83,0.16925258]
[1693536282160,0.07557398,216.97,214.8,1.68946806]
[1693536282360,0.07557398,216.97,214.84,0.16925258]
[1693536282661,0.07557398,216.97,214.85,0.16925258]
[1693536282962,0.07557398,216.98,214.86,0.16925258]
[1693536283161,0.07557398,216.98,214.8,1.68946806]
[1693536283956,0.07557398,216.99,214.8,1.68946806]
[1693536285158,0.07557398,217.0,214.8,1.68946806]
[1693536285864,0.07557398,217.01,214.8,1.68946806]
[1693536287064,0.07557398,217.02,214.8,1.68946806]
[1693536288263,0.07557398,217.03,214.8,1.68946806]
[1693536289060,0.07557398,217.05,214.8,1.68946806]
[1693536294471,0.07557398,217.04,214.8,1.68946806]
[1693536300276,0.07557398,217.03,214.8,1.68946806]
[1693536303274,0.07557398,217.02,214.8,1.68946806]
[1693536303477,0.07557398,217.03,214.8,1.68946806]
[1693536305476,0.07557398,217.02,214.8,1.68946806]
[1693536308582,0.07557398,217.02,214.79,1.68946806]
[1693536312480,0.07557398,217.03,214.79,1.68946806]
[1693536313086,0.07557398,217.02,214.79,1.68946806]
[1693536313588,0.07557398,217.03,214.79,1.68946806]
[1693536313891,0.07557398,217.02,214.79,1.68946806]
[1693536314582,0.07557398,216.98,214.79,1.68946806]
[1693536315387,0.07557398,216.99,214.79,1.68946806]
[1693536316484,0.07557398,217.0,214.79,1.68946806]
[1693536317286,0.07557398,217.0,214.72,1.68946806]
[1693536317489,0.07557398,217.01,214.72,1.68946806]
[1693536318385,0.07557398,217.02,214.72,1.68946806]
[1693536318590,0.07557398,217.01,214.72,1.68946806]
[1693536319285,0.07557398,217.02,214.72,1.68946806]
[1693536320487,0.07557398,217.01,214.72,1.68946806]
[1693536321394,0.07557398,217.0,214.72,1.68946806]
[1693536323492,0.07557398,216.99,214.72,1.68946806]
[1693536324496,0.07557398,216.98,214.72,1.68946806]
[1693536326500,0.07557398,216.97,214.72,1.68946806]
[1693536327595,0.07557398,216.96,214.72,1.68946806]
[1693536329502,0.07557398,216.95,214.72,1.68946806]
[1693536332296,0.15114796,216.97,214.72,1.68946806]
[1693536332297,0.07557398,216.94,214.72,1.68946806]
[1693536334002,0.50382656,216.99,214.23,0.16925258]
[1693536334003,0.07557398,216.95,214.73,1.68946806]
[1693536334904,0.07557398,216.94,214.73,1.68946806]
[1693536339406,0.07557398,216.93,214.73,1.68946806]
[1693536343409,0.07557398,216.92,214.73,1.68946806]
[1693536346613,0.07557398,216.91,214.73,1.68946806]
[1693536347412,0.07557398,216.9,214.73,1.68946806]
[1693536348409,0.07557398,216.89,214.73,1.68946806]
[1693536349517,0.07557398,216.9,214.73,1.68946806]
[1693536352219,0.07557398,216.91,214.73,1.68946806]
[1693536354219,0.07557398,216.92,214.73,1.68946806]
[1693536356216,0.07557398,216.93,214.73,1.68946806]
[1693536357223,0.07557398,216.94,214.73,1.68946806]
[1693536358320,0.07557398,216.95,214.73,1.68946806]
[1693536361824,0.07557398,216.96,214.73,1.68946806]
[1693536362926,0.07557398,216.96,214.74,1.68946806]
[1693536364326,0.07557398,216.97,214.74,1.68946806]
[1693536365630,0.07557398,216.96,214.74,1.68946806]
[1693536385943,0.07557398,216.97,214.74,1.68946806]
[1693536403358,2.51913282,217.1,214.74,1.68946806]
[1693536403565,0.07556225,216.97,214.74,1.68946806]
[1693536404159,0.07556225,216.96,214.74,1.68946806]
[1693536406364,0.07556225,216.96,214.73,1.68946806]
[1693536410361,0.07555263,216.96,214.73,1.68946806]
[1693536422378,0.07555263,216.96,214.72,1.68946806]
[1693536429291,0.07555263,216.95,214.72,1.68946806]
[1693536430394,0.07555263,216.96,214.72,1.68946806]
[1693536430589,0.07555263,216.95,214.72,1.68946806]
[1693536430793,0.07555263,216.95,214.71,1.68946806]
[1693536431194,0.07555263,216.96,214.71,1.68946806]
[1693536434897,0.07555263,216.95,214.71,1.68946806]
[1693536435195,0.07555263,216.95,214.72,1.85872064]
[1693536435396,0.07555263,216.96,214.73,0.16925258]
[1693536435594,0.07555263,216.96,214.72,1.68946806]
[1693536435799,0.07555263,216.95,214.72,1.68946806]
[1693536439294,0.07555263,216.95,214.71,1.68946806]
[1693536444102,0.07555263,216.94,214.71,1.68946806]
[1693536444306,0.07555263,216.95,214.71,1.68946806]
[1693536444904,0.07555263,216.94,214.71,1.68946806]
[1693536445909,0.07555263,216.95,214.71,1.68946806]
[1693536446102,0.07555263,216.94,214.71,1.68946806]
[1693536461616,0.07555263,216.93,214.71,1.68946806]
[1693536461810,0.07555263,216.94,214.71,1.68946806]
[1693536462819,0.07555263,216.95,214.71,1.68946806]
[1693536463414,0.07555263,216.95,214.73,1.68946806]
[1693536463717,0.07555263,216.96,214.73,1.68946806]
[1693536465619,0.07555263,216.97,214.73,1.68946806]
[1693536472724,0.07555263,216.96,214.73,1.68946806]
[1693536476522,0.07555263,216.96,214.72,1.68946806]
[1693536494329,0.07555263,216.95,214.72,1.68946806]
[1693536494731,0.07555263,216.96,214.72,1.68946806]
[1693536494928,0.07555263,216.97,214.72,1.68946806]
[1693536498638,0.07555263,216.97,214.73,1.85872064]
[1693536498838,0.07555263,216.97,214.74,0.16925258]
[1693536499041,0.07555263,216.97,214.75,0.16925258]
[1693536499237,0.07555263,216.97,214.73,1.68946806]
[1693536501642,0.07555263,216.98,214.73,1.68946806]
[1693536501842,0.5036842,217.02,214.73,1.68946806]
[1693536501843,0.07555263,217.02,214.73,1.68946806]
[1693536502343,0.07555263,217.04,214.73,1.68946806]
[1693536502940,0.07555263,217.04,214.79,1.68946806]
[1693536503539,0.07555263,217.05,214.79,1.68946806]
[1693536504640,0.07555263,217.06,214.79,1.68946806]
[1693536505236,0.07555263,217.07,214.79,1.68946806]
[1693536506446,0.07555263,217.08,214.79,1.68946806]
[1693536507247,0.07555263,217.09,214.8,1.68946806]
[1693536509342,0.07555263,217.08,214.8,1.68946806]
[1693536511451,0.07555263,217.07,214.8,1.68946806]
[1693536513349,0.07555263,217.06,214.8,1.68946806]
[1693536515449,0.07555263,217.05,214.81,0.16925258]
[1693536515649,0.07555263,217.06,214.82,0.16925258]
[1693536515849,0.07555263,217.06,214.83,0.16925258]
[1693536516050,0.07555263,217.06,214.84,0.16925258]
[1693536516252,0.07555263,217.05,214.85,0.16925258]
[1693536516451,0.07555263,217.05,214.79,1.68946806]
[1693536518355,0.07555263,217.04,214.79,1.68946806]
[1693536519559,0.07555263,217.04,214.8,1.85872064]
[1693536519762,0.07555263,217.04,214.8,1.68946806]
[1693536521663,0.07555263,217.03,214.8,1.68946806]
[1693536524460,0.07555263,217.02,214.8,1.68946806]
[1693536526364,0.07555263,217.01,214.8,1.68946806]
[1693536527364,0.07555263,217.0,214.8,1.68946806]
[1693536527564,0.07555263,217.0,214.81,0.16925258]
[1693536527770,0.07555263,217.0,214.82,0.16925258]
[1693536527967,0.07555263,217.0,214.83,0.16925258]
[1693536528170,0.07555263,217.0,214.84,0.16925258]
[1693536528364,0.07555263,217.0,214.85,0.16925258]
[1693536528569,2.51842104,217.13,214.79,1.68946806]
[1693536528770,2.50871106,217.13,214.87,0.16925258]
[1693536528966,0.07526133,217.0,214.88,0.16925258]
[1693536529169,0.07526133,217.0,214.89,0.16925258]
[1693536529370,0.07526133,216.99,214.9,0.16925258]
[1693536529565,0.07526133,216.99,214.91,0.16925258]
[1693536529767,0.07526133,216.99,214.92,0.16925258]
[1693536529966,0.07526133,216.99,214.93,0.16925258]
[1693536530169,0.07526133,216.99,214.94,0.16925258]
[1693536530370,0.07526133,216.99,214.79,1.68946806]
[1693536531365,0.07526133,216.98,214.79,1.68946806]
[1693536532570,0.07526133,216.97,214.79,1.68946806]
[1693536534268,0.07526133,216.96,214.79,1.68946806]
[1693536535573,0.07526133,216.95,214.79,1.68946806]
[1693536536375,0.07526133,216.93,214.79,1.68946806]
[1693536538372,0.07526133,216.94,214.79,1.68946806]
[1693536539674,0.07526133,216.94,214.8,1.85872064]
[1693536539882,0.07526133,216.94,214.81,0.16925258]
[1693536540082,0.07526133,216.94,214.8,1.68946806]
[1693536541584,0.07526133,216.93,214.8,1.68946806]
[1693536542186,0.07526133,216.94,214.8,1.68946806]
[1693536544490,0.07526133,216.95,214.8,1.68946806]
[1693536544688,0.07526133,216.94,214.8,1.68946806]
[1693536545189,0.07526133,216.95,214.8,1.68946806]
[1693536547392,0.07526133,216.96,214.8,1.68946806]
[1693536547591,0.07526133,216.96,214.79,1.68946806]
[1693536548392,0.07526133,216.97,214.79,1.68946806]
[1693536548789,0.07526133,216.96,214.79,1.68946806]
[1693536548991,0.07526133,216.97,214.79,1.68946806]
[1693536550294,0.07526133,216.98,214.79,1.68946806]
[1693536551392,0.07526133,216.99,214.8,1.68946806]
[1693536552493,0.07526133,217.0,214.8,1.68946806]
[1693536553393,0.07526133,217.01,214.8,1.68946806]
[1693536554190,0.07526133,217.02,214.8,1.68946806]
[1693536556988,0.07526133,217.01,214.8,1.68946806]
[1693536557392,0.15052266,217.03,214.8,1.68946806]
[1693536557393,0.07526133,217.02,214.8,1.68946806]
[1693536557793,0.07526133,217.01,214.8,1.68946806]
[1693536558194,0.07526133,217.02,214.8,1.68946806]
[1693536558793,0.07526133,217.02,214.81,0.16925258]
[1693536558995,0.07526133,217.02,214.79,1.68946806]
[1693536567202,0.07526133,217.02,214.78,1.68946806]
[1693536585420,0.07526133,217.02,214.79,1.85872064]
[1693536585618,0.07526133,217.02,214.8,0.16925258]
[1693536585818,0.07526133,217.02,214.81,0.16925258]
[1693536586118,0.07526133,217.02,214.82,0.16925258]
[1693536586317,0.07526133,217.02,214.83,0.16925258]
[1693536586514,0.07526133,217.02,214.79,1.68946806]
[1693536589718,0.07526133,217.01,214.79,1.68946806]
[1693536598724,0.15052266,217.04,214.79,1.68946806]
[1693536598725,0.07526133,217.02,214.79,1.68946806]
[1693536600528,0.07526133,217.01,214.79,1.68946806]
[1693536601427,0.07526133,217.02,214.79,1.68946806]
[1693536609333,0.07526133,217.01,214.79,1.68946806]
[1693536609734,0.07526133,217.02,214.79,1.68946806]
[1693536616440,0.07526133,216.97,214.79,1.68946806]
[1693536616641,0.07526133,216.96,214.79,1.68946806]
[1693536616840,0.07526133,216.98,214.79,1.68946806]
[1693536617938,0.07526133,216.99,214.79,1.68946806]
[1693536618740,0.07526133,217.0,214.79,1.68946806]
[1693536619643,0.07526133,217.0,214.8,0.16925258]
[1693536619943,0.07526133,217.0,214.81,0.16925258]
[1693536620144,0.07526133,217.0,214.74,1.68946806]
[1693536620847,0.07526133,217.01,214.74,1.68946806]
[1693536623751,0.07526133,217.02,214.74,1.68946806]
[1693536628553,0.07526133,217.03,214.74,1.68946806]
[1693536628952,0.07526133,217.03,214.75,1.68946806]
[1693536639261,0.07526133,217.02,214.75,1.68946806]
[1693536643269,0.07526133,217.01,214.75,1.68946806]
[1693536646771,0.07526133,217.0,214.75,1.68946806]
[1693536648871,0.07526133,216.99,214.75,1.68946806]
[1693536650873,0.07526133,216.97,214.75,1.68946806]
[1693536661179,0.07526133,216.96,214.75,1.68946806]
[1693536665283,0.07526133,216.96,214.74,1.68946806]
[1693536669587,0.07526133,216.97,214.74,1.68946806]
[1693536671991,0.07526133,216.96,214.74,1.68946806]
[1693536673386,0.07526133,216.95,214.74,1.68946806]
[1693536674386,0.07526133,216.96,214.75,0.16925258]
[1693536674591,0.07526133,216.96,214.76,0.16925258]
[1693536674790,0.07526133,216.96,214.73,1.68946806]
[1693536675289,0.07526133,216.95,214.73,1.68946806]
[1693536675589,0.07526133,216.96,214.73,1.68946806]
[1693536678792,0.07526133,216.96,214.74,0.16925258]
[1693536678993,0.07526133,216.96,214.75,0.16925258]
[1693536679193,0.07526133,216.96,214.72,1.68946806]
[1693536681492,0.07526133,216.97,214.72,1.68946806]
[1693536685899,0.07526133,216.96,214.72,1.68946806]
[1693536686702,0.07526133,216.9,214.72,1.68946806]
[1693536687501,0.07526133,216.92,214.72,1.68946806]
[1693536687700,0.07526133,216.92,214.25,0.16925258]
[1693536687701,0.07526133,216.92,214.73,0.16925258]
[1693536687900,0.07526133,216.91,214.66,1.68946806]
[1693536688103,0.07526133,216.92,214.66,1.68946806]
[1693536688504,0.07526133,216.93,214.66,1.68946806]
[1693536689500,0.07526133,216.94,214.66,1.68946806]
[1693536691401,0.07526133,216.93,214.66,1.68946806]
[1693536692100,0.07526133,216.93,214.65,1.68946806]
[1693536692301,0.07526133,216.92,214.65,1.68946806]
[1693536693604,0.07526133,216.91,214.65,1.68946806]
[1693536694913,0.07526133,216.9,214.65,1.68946806]
[1693536695214,0.07526133,216.91,214.65,1.68946806]
[1693536695513,0.07526133,216.9,214.65,1.68946806]
[1693536696616,0.07526133,216.89,214.65,1.68946806]
[1693536698414,0.07526133,216.88,214.65,1.68946806]
[1693536700311,0.07526133,216.87,214.65,1.68946806]
[1693536702313,0.07526133,216.86,214.65,1.68946806]
[1693536702916,0.07526133,216.85,214.65,1.68946806]
[1693536704412,0.07526133,216.84,214.66,0.16925258]
[1693536704621,0.07526133,216.84,214.67,0.16925258]
[1693536704820,0.07526133,216.84,214.68,0.16925258]
[1693536705020,0.07526133,216.84,214.64,1.68946806]
[1693536705517,0.07526133,216.83,214.64,1.68946806]
[1693536707521,0.07526133,216.82,214.64,1.68946806]
[1693536708417,0.07526133,216.82,214.65,0.16925258]
[1693536708624,0.07526133,216.82,214.66,0.16925258]
[1693536708824,0.07526133,216.82,214.67,0.16925258]
[1693536709024,0.07526133,216.82,214.68,0.16925258]
[1693536709321,0.07526133,216.82,214.69,0.16925258]
[1693536709517,0.07526133,216.82,214.7,0.16925258]
[1693536709722,0.07526133,216.82,214.71,0.16925258]
[1693536709917,0.07526133,216.82,214.72,0.16925258]
[1693536710222,0.07526133,216.82,214.73,0.16925258]
[1693536710417,0.07526133,216.81,214.74,0.16925258]
[1693536710618,0.07526133,216.81,214.75,0.16925258]
[1693536710823,0.07526133,216.81,214.76,0.16925258]
[1693536711024,0.07526133,216.81,214.63,1.68946806]
[1693536716326,0.07526133,216.81,214.64,1.85872064]
[1693536716528,0.07526133,216.8,214.64,1.68946806]
[1693536716823,0.07526133,216.81,214.64,1.68946806]
[1693536717521,0.07526133,216.8,214.64,1.68946806]
[1693536718522,0.07526133,216.79,214.64,1.68946806]
[1693536718923,0.07526133,216.8,214.64,1.68946806]
[1693536719326,0.07526133,216.79,214.64,1.68946806]
[1693536720323,0.07526133,216.78,214.64,1.68946806]
[1693536721324,0.22578399,216.78,214.64,1.68946806]
[1693536721529,0.07526133,216.76,214.64,1.68946806]
[1693536723929,0.15052266,216.79,214.64,1.68946806]
[1693536723930,0.07526133,216.77,214.64,1.68946806]
[1693536725530,0.07526133,216.78,214.64,1.68946806]
[1693536727430,0.07526133,216.79,214.64,1.68946806]
[1693536729524,0.07526133,216.8,214.64,1.68946806]
[1693536730427,0.07526133,216.81,214.64,1.68946806]
[1693536731327,0.07526133,216.82,214.64,1.68946806]
[1693536733133,0.07526133,216.82,214.65,1.85872064]
[1693536733334,0.07526133,216.82,214.65,1.68946806]
[1693536733533,0.07526133,216.83,214.65,1.68946806]
[1693536734537,0.07526133,216.84,214.65,1.68946806]
[1693536736541,0.07526133,216.85,214.65,1.68946806]
[1693536737942,0.07526133,216.86,214.65,1.68946806]
[1693536739442,0.07526133,216.87,214.65,1.68946806]
[1693536754750,0.07526133,216.86,214.65,1.68946806]
[1693536755852,0.07526133,216.86,214.66,0.16925258]
[1693536756154,0.07526133,216.86,214.67,0.16925258]
[1693536756347,0.07526133,216.86,214.68,0.16925258]
[1693536756653,0.07526133,216.86,214.69,0.16925258]
[1693536756852,0.07526133,216.86,214.64,1.68946806]
[1693536757353,0.07526133,216.87,214.64,1.68946806]
[1693536757552,0.07526133,216.86,214.64,1.68946806]
[1693536757753,0.07526133,216.87,214.64,1.68946806]
[1693536758455,0.07526133,216.86,214.64,1.68946806]
[1693536759748,0.07526133,216.87,214.64,1.68946806]
[1693536761151,0.07526133,216.86,214.64,1.68946806]
[1693536761347,0.07526133,216.87,214.64,1.68946806]
[1693536765156,0.07526133,216.86,214.64,1.68946806]
[1693536765351,0.07526133,216.87,214.64,1.68946806]
[1693536770159,0.07526133,216.86,214.64,1.68946806]
[1693536770360,0.07526133,216.87,214.64,1.68946806]
[1693536770560,0.07526133,216.86,214.64,1.68946806]
[1693536771457,0.07526133,216.87,214.64,1.68946806]
[1693536776762,0.07526133,216.86,214.64,1.68946806]
[1693536782058,0.07526133,216.87,214.64,1.68946806]
[1693536782663,0.07526133,216.86,214.64,1.68946806]
[1693536796275,0.07526133,216.85,214.64,1.68946806]
[1693536798776,0.07526133,216.86,214.64,1.68946806]
[1693536814689,2.50871106,216.99,214.64,1.68946806]
[1693536814891,0.07549251,216.86,214.64,1.68946806]
[1693536820096,0.07549251,216.85,214.64,1.68946806]
[1693536822096,0.07549251,216.86,214.64,1.68946806]
[1693536822293,0.07549251,216.85,214.64,1.68946806]
[1693536822501,0.07549251,216.86,214.64,1.68946806]
[1693536822800,0.07549251,216.86,214.65,0.16925258]
[1693536822999,0.07549251,216.86,214.66,0.16925258]
[1693536823298,0.07549251,216.86,214.67,0.16925258]
[1693536823498,0.07549251,216.86,214.68,0.16925258]
[1693536823699,0.07549251,216.86,214.69,0.16925258]
[1693536823899,0.07549251,216.86,214.7,0.16925258]
[1693536824198,0.07549251,216.86,214.71,0.16925258]
[1693536824400,0.07549251,216.86,214.72,0.16925258]